[Event "*** Titled Tuesday Blitz"]
[Site "Chess.com"]
[Date "2020.02.04"]
[Round "1"]
[White "Andrei_Belozerov"]
[Black "LiemLe"]
[Result "1-0"]
[WhiteElo "2554"]
[BlackElo "2990"]
[TimeControl "180+2"]
[EndTime "9:08:59 PST"]
[Termination "Andrei_Belozerov won on time"]

1. e4 {[%clk 0:02:58.3]} 1... c5 {[%clk 0:03:00.6]} 2. Nf3 {[%clk 0:02:58.7]}
2... Nc6 {[%clk 0:03:01.9]} 3. d4 {[%clk 0:02:59.7]} 3... cxd4 {[%clk
0:03:03.8]} 4. Nxd4 {[%clk 0:03:01.3]} 4... Nf6 {[%clk 0:03:05.5]} 5. Nc3 {[%clk
0:03:01.8]} 5... e5 {[%clk 0:03:06.7]} 6. Ndb5 {[%clk 0:03:02.8]} 6... d6 {[%clk
0:03:07.9]} 7. Bg5 {[%clk 0:03:03.2]} 7... a6 {[%clk 0:03:09.1]} 8. Na3 {[%clk
0:03:04.4]} 8... b5 {[%clk 0:03:10.3]} 9. Nd5 {[%clk 0:03:05.2]} 9... Be7 {[%clk
0:03:11.7]} 10. Bxf6 {[%clk 0:03:06.6]} 10... Bxf6 {[%clk 0:03:12.9]} 11. c3
{[%clk 0:03:08.2]} 11... Bg5 {[%clk 0:03:11.9]} 12. Nc2 {[%clk 0:03:08.6]} 12...
Rb8 {[%clk 0:03:12.5]} 13. Be2 {[%clk 0:03:04.8]} 13... O-O {[%clk 0:03:12.8]}
14. O-O {[%clk 0:03:05.3]} 14... Be6 {[%clk 0:02:55.7]} 15. Qd3 {[%clk
0:03:02.7]} 15... Ne7 {[%clk 0:02:47.7]} 16. Ncb4 {[%clk 0:02:59.5]} 16... Bxd5
{[%clk 0:02:41.1]} 17. Nxd5 {[%clk 0:03:00]} 17... Nxd5 {[%clk 0:02:41.8]} 18.
Qxd5 {[%clk 0:03:00.7]} 18... Qc7 {[%clk 0:02:33]} 19. Rfd1 {[%clk 0:02:59.3]}
19... Rfd8 {[%clk 0:02:33.5]} 20. g3 {[%clk 0:02:54.8]} 20... g6 {[%clk
0:02:33.9]} 21. Kg2 {[%clk 0:02:55.3]} 21... Kg7 {[%clk 0:02:34.6]} 22. Rd3
{[%clk 0:02:49.4]} 22... a5 {[%clk 0:02:31.7]} 23. Rad1 {[%clk 0:02:46.2]} 23...
Be7 {[%clk 0:02:32.2]} 24. Rf3 {[%clk 0:02:41]} 24... Bf6 {[%clk 0:02:28.9]} 25.
Bxb5 {[%clk 0:02:40.3]} 25... h5 {[%clk 0:02:11.6]} 26. a4 {[%clk 0:02:37.9]}
26... h4 {[%clk 0:02:12.7]} 27. Rdd3 {[%clk 0:02:33.7]} 27... hxg3 {[%clk
0:02:09.8]} 28. hxg3 {[%clk 0:02:33.2]} 28... Bg5 {[%clk 0:01:53.1]} 29. Bc4
{[%clk 0:02:29.4]} 29... Rb7 {[%clk 0:01:46.8]} 30. b3 {[%clk 0:02:21.9]} 30...
Qd7 {[%clk 0:01:31.6]} 31. Kf1 {[%clk 0:02:03.2]} 31... Ra7 {[%clk 0:01:20.2]}
32. Ke2 {[%clk 0:01:55]} 32... Bf6 {[%clk 0:01:11]} 33. Kd1 {[%clk 0:01:42.8]}
33... Qh3 {[%clk 0:01:08.9]} 34. Kc2 {[%clk 0:01:39.4]} 34... Rdd7 {[%clk
0:00:49.2]} 35. Rde3 {[%clk 0:01:30]} 35... Qg2 {[%clk 0:00:38.1]} 36. Qd1
{[%clk 0:01:27.2]} 36... Bd8 {[%clk 0:00:25.1]} 37. Rd3 {[%clk 0:01:14]} 37...
Bb6 {[%clk 0:00:25.6]} 38. Rd2 {[%clk 0:01:07.3]} 38... Rac7 {[%clk 0:00:21.6]}
39. Qe2 {[%clk 0:00:57.5]} 39... Rd8 {[%clk 0:00:19.9]} 40. Rfd3 {[%clk
0:00:58.2]} 40... Bc5 {[%clk 0:00:18.6]} 41. Qf3 {[%clk 0:00:59.3]} 41... Qh2
{[%clk 0:00:17.9]} 42. Rd5 {[%clk 0:00:58.3]} 42... Rh8 {[%clk 0:00:17]} 43.
Rxc5 {[%clk 0:00:51.5]} 43... dxc5 {[%clk 0:00:14.8]} 44. Rd6 {[%clk 0:00:52.4]}
44... Qh5 {[%clk 0:00:13.6]} 45. Qf6+ {[%clk 0:00:52.6]} 45... Kh7 {[%clk
0:00:14.8]} 46. Bxf7 {[%clk 0:00:51.1]} 46... Qe2+ {[%clk 0:00:15.3]} 47. Rd2
{[%clk 0:00:52]} 47... Qxe4+ {[%clk 0:00:16.4]} 48. Kb2 {[%clk 0:00:53.6]} 48...
Rb8 {[%clk 0:00:09.6]} 49. f4 {[%clk 0:00:52.8]} 1-0

[Event "*** Titled Tuesday Blitz"]
[Site "Chess.com"]
[Date "2020.02.04"]
[Round "1"]
[White "Uih7I9kOKokUOhjUJ"]
[Black "pedromartinez91"]
[Result "1-0"]
[WhiteElo "2760"]
[BlackElo "2404"]
[TimeControl "180+2"]
[EndTime "9:09:02 PST"]
[Termination "Uih7I9kOKokUOhjUJ won by checkmate"]

1. d4 {[%clk 0:03:01.9]} 1... d5 {[%clk 0:02:59.5]} 2. c4 {[%clk 0:03:02.6]}
2... Bf5 {[%clk 0:03:00.1]} 3. cxd5 {[%clk 0:03:00.3]} 3... Bxb1 {[%clk
0:02:59.4]} 4. Qa4+ {[%clk 0:03:01.4]} 4... c6 {[%clk 0:03:00.1]} 5. Rxb1 {[%clk
0:02:59.4]} 5... Qxd5 {[%clk 0:03:00.5]} 6. e3 {[%clk 0:02:55]} 6... Nd7 {[%clk
0:03:00.7]} 7. Ne2 {[%clk 0:02:39.7]} 7... Nb6 {[%clk 0:02:57]} 8. Qc2 {[%clk
0:02:38.4]} 8... e5 {[%clk 0:02:39.3]} 9. Nc3 {[%clk 0:02:23.7]} 9... Bb4 {[%clk
0:02:39]} 10. Bd2 {[%clk 0:02:23.7]} 10... Bxc3 {[%clk 0:02:39.9]} 11. Bxc3
{[%clk 0:02:17.8]} 11... Nf6 {[%clk 0:02:29.4]} 12. dxe5 {[%clk 0:02:08.1]}
12... Qe4 {[%clk 0:02:14.7]} 13. Qd3 {[%clk 0:01:28.1]} 13... Rd8 {[%clk
0:02:08]} 14. Qxe4 {[%clk 0:01:25.7]} 14... Nxe4 {[%clk 0:02:09.9]} 15. Ba5
{[%clk 0:01:27.6]} 15... Rd5 {[%clk 0:02:06.6]} 16. Bb4 {[%clk 0:01:08]} 16...
Rxe5 {[%clk 0:01:58.6]} 17. Be2 {[%clk 0:01:07.1]} 17... Nd5 {[%clk 0:01:57.6]}
18. Ba3 {[%clk 0:01:03.6]} 18... f5 {[%clk 0:01:54.2]} 19. O-O {[%clk 0:01:03]}
19... Nd2 {[%clk 0:01:50.9]} 20. Rbd1 {[%clk 0:00:56]} 20... Nxf1 {[%clk
0:01:51.6]} 21. Kxf1 {[%clk 0:00:56.3]} 21... Kf7 {[%clk 0:01:50.4]} 22. Bc4
{[%clk 0:00:52.6]} 22... Rhe8 {[%clk 0:01:43.6]} 23. Bd6 {[%clk 0:00:50.6]}
23... Re4 {[%clk 0:01:38]} 24. Bb3 {[%clk 0:00:39.9]} 24... Rd8 {[%clk
0:01:32.5]} 25. Bc5 {[%clk 0:00:39.2]} 25... Kg6 {[%clk 0:01:28.7]} 26. Bxa7
{[%clk 0:00:36]} 26... Rb4 {[%clk 0:01:28.8]} 27. Rd4 {[%clk 0:00:26.7]} 27...
Ra8 {[%clk 0:01:21.2]} 28. Bc5 {[%clk 0:00:24.4]} 28... Rxd4 {[%clk 0:01:17]}
29. Bxd4 {[%clk 0:00:26.3]} 29... Nb4 {[%clk 0:01:01.3]} 30. a3 {[%clk
0:00:26.4]} 30... Nd5 {[%clk 0:00:50.1]} 31. Bc2 {[%clk 0:00:24.7]} 31... Ne7
{[%clk 0:00:45.1]} 32. Bc5 {[%clk 0:00:21.8]} 32... Ng8 {[%clk 0:00:34.4]} 33.
g4 {[%clk 0:00:20.9]} 33... Nh6 {[%clk 0:00:35.5]} 34. h3 {[%clk 0:00:22.1]}
34... Kf7 {[%clk 0:00:22.8]} 35. g5 {[%clk 0:00:21.3]} 35... Ng8 {[%clk
0:00:21.3]} 36. Bxf5 {[%clk 0:00:20]} 36... Ra5 {[%clk 0:00:21.9]} 37. b4 {[%clk
0:00:20.9]} 37... Rxa3 {[%clk 0:00:22.9]} 38. Bc8 {[%clk 0:00:19.9]} 38... b5
{[%clk 0:00:18]} 39. Bd7 {[%clk 0:00:19.6]} 39... Ne7 {[%clk 0:00:16.3]} 40. Kg2
{[%clk 0:00:20.8]} 40... Rb3 {[%clk 0:00:13.4]} 41. e4 {[%clk 0:00:20.4]} 41...
Ng6 {[%clk 0:00:13.6]} 42. Bxc6 {[%clk 0:00:19.6]} 42... Nf4+ {[%clk 0:00:14.2]}
43. Kh2 {[%clk 0:00:20.6]} 43... Kg6 {[%clk 0:00:11.3]} 44. Be3 {[%clk
0:00:20.1]} 44... Nd3 {[%clk 0:00:09]} 45. Be8# {[%clk 0:00:19.4]} 1-0

[Event "*** Titled Tuesday Blitz"]
[Site "Chess.com"]
[Date "2020.02.04"]
[Round "1"]
[White "Zq1"]
[Black "FairChess_on_YouTube"]
[Result "1/2-1/2"]
[WhiteElo "2542"]
[BlackElo "3039"]
[TimeControl "180+2"]
[EndTime "9:09:07 PST"]
[Termination "Game drawn - insufficient material"]

1. d4 {[%clk 0:03:00]} 1... Nf6 {[%clk 0:03:00.4]} 2. c4 {[%clk 0:03:01]} 2...
c5 {[%clk 0:02:58.9]} 3. Nf3 {[%clk 0:03:00.5]} 3... cxd4 {[%clk 0:02:59]} 4.
Nxd4 {[%clk 0:03:01.6]} 4... d5 {[%clk 0:03:00.3]} 5. cxd5 {[%clk 0:02:54.2]}
5... Nxd5 {[%clk 0:03:02.2]} 6. e4 {[%clk 0:02:54.3]} 6... Nb4 {[%clk
0:03:03.2]} 7. Bb5+ {[%clk 0:02:43.4]} 7... N8c6 {[%clk 0:03:03.9]} 8. Nxc6
{[%clk 0:02:35.4]} 8... Qxd1+ {[%clk 0:02:36.8]} 9. Kxd1 {[%clk 0:02:34.3]} 9...
bxc6 {[%clk 0:02:32.3]} 10. Bc4 {[%clk 0:02:23.5]} 10... e5 {[%clk 0:02:30.8]}
11. Be3 {[%clk 0:02:12.5]} 11... f5 {[%clk 0:02:29.7]} 12. a3 {[%clk 0:02:01.9]}
12... f4 {[%clk 0:02:24.5]} 13. Bd2 {[%clk 0:02:01.7]} 13... Ba6 {[%clk
0:02:22.4]} 14. Bxa6 {[%clk 0:01:59.9]} 14... Nxa6 {[%clk 0:02:24.3]} 15. b4
{[%clk 0:01:57.1]} 15... O-O-O {[%clk 0:02:16.1]} 16. Ke2 {[%clk 0:01:55.4]}
16... c5 {[%clk 0:02:05.6]} 17. Rc1 {[%clk 0:01:46.7]} 17... Kb7 {[%clk
0:02:05.6]} 18. Nc3 {[%clk 0:01:34.2]} 18... Rd4 {[%clk 0:02:05.2]} 19. b5
{[%clk 0:01:29.5]} 19... Nc7 {[%clk 0:02:04.6]} 20. f3 {[%clk 0:01:30.4]} 20...
Be7 {[%clk 0:01:59.4]} 21. Be1 {[%clk 0:01:30.5]} 21... Rhd8 {[%clk 0:01:59.9]}
22. Rc2 {[%clk 0:01:31.2]} 22... Rc4 {[%clk 0:01:56.9]} 23. Rac1 {[%clk
0:01:25]} 23... Ne6 {[%clk 0:01:54]} 24. Bf2 {[%clk 0:01:21.9]} 24... Nc7 {[%clk
0:01:12.3]} 25. a4 {[%clk 0:01:12.3]} 25... g5 {[%clk 0:01:13.2]} 26. a5 {[%clk
0:01:09.1]} 26... h5 {[%clk 0:01:14.2]} 27. h3 {[%clk 0:01:08.3]} 27... g4
{[%clk 0:01:12.9]} 28. hxg4 {[%clk 0:01:07.7]} 28... hxg4 {[%clk 0:01:14.8]} 29.
b6 {[%clk 0:00:57.5]} 29... axb6 {[%clk 0:01:10.5]} 30. axb6 {[%clk 0:00:58.1]}
30... gxf3+ {[%clk 0:00:44.1]} 31. gxf3 {[%clk 0:00:58]} 31... Ne6 {[%clk
0:00:45.7]} 32. Nd5 {[%clk 0:00:50.7]} 32... Rxc2+ {[%clk 0:00:45.1]} 33. Rxc2
{[%clk 0:00:51.1]} 33... Bd6 {[%clk 0:00:46.5]} 34. Ra2 {[%clk 0:00:24.6]} 34...
Bb8 {[%clk 0:00:47.3]} 35. Kd3 {[%clk 0:00:22]} 35... Rh8 {[%clk 0:00:36.9]} 36.
Kc4 {[%clk 0:00:20.6]} 36... Rh2 {[%clk 0:00:31.5]} 37. Rb2 {[%clk 0:00:21.1]}
37... Ng5 {[%clk 0:00:28.8]} 38. Bd4 {[%clk 0:00:18.6]} 38... Rxb2 {[%clk
0:00:19.1]} 39. Bxb2 {[%clk 0:00:19.4]} 39... Nxf3 {[%clk 0:00:20.7]} 40. Kxc5
{[%clk 0:00:19.4]} 40... Nd2 {[%clk 0:00:21.6]} 41. Nc3 {[%clk 0:00:10.2]} 41...
f3 {[%clk 0:00:21.8]} 42. Nd1 {[%clk 0:00:11.3]} 42... Nxe4+ {[%clk 0:00:19.6]}
43. Kd5 {[%clk 0:00:12.3]} 43... Nf6+ {[%clk 0:00:09.9]} 44. Ke6 {[%clk
0:00:13]} 44... Ng4 {[%clk 0:00:07.3]} 45. Kf5 {[%clk 0:00:13.8]} 45... f2
{[%clk 0:00:05.4]} 46. Nxf2 {[%clk 0:00:14.2]} 46... Nxf2 {[%clk 0:00:06.2]} 47.
Bxe5 {[%clk 0:00:15.1]} 47... Bxe5 {[%clk 0:00:07.5]} 48. Kxe5 {[%clk
0:00:16.3]} 48... Kxb6 {[%clk 0:00:09.4]} 1/2-1/2

[Event "*** Titled Tuesday Blitz"]
[Site "Chess.com"]
[Date "2020.02.04"]
[Round "1"]
[White "wonderfultime"]
[Black "Ginzburg_Yakov"]
[Result "1-0"]
[WhiteElo "2974"]
[BlackElo "2522"]
[TimeControl "180+2"]
[EndTime "9:09:10 PST"]
[Termination "wonderfultime won by resignation"]

1. d4 {[%clk 0:02:54.8]} 1... d5 {[%clk 0:02:59.3]} 2. Nf3 {[%clk 0:02:56.1]}
2... Nf6 {[%clk 0:03:00.2]} 3. Bf4 {[%clk 0:02:56.7]} 3... c6 {[%clk 0:03:00.2]}
4. e3 {[%clk 0:02:57.9]} 4... Bf5 {[%clk 0:02:59.6]} 5. c4 {[%clk 0:02:59.2]}
5... e6 {[%clk 0:02:59.1]} 6. Nc3 {[%clk 0:02:59.3]} 6... Qb6 {[%clk 0:02:20.6]}
7. Qb3 {[%clk 0:02:50.9]} 7... Nbd7 {[%clk 0:02:11.6]} 8. c5 {[%clk 0:02:44.6]}
8... Qxb3 {[%clk 0:02:12.4]} 9. axb3 {[%clk 0:02:46.5]} 9... a6 {[%clk
0:02:13.9]} 10. b4 {[%clk 0:02:47.8]} 10... Rc8 {[%clk 0:02:14.6]} 11. h3 {[%clk
0:02:45.9]} 11... h6 {[%clk 0:02:10]} 12. Be2 {[%clk 0:02:45.5]} 12... Be7
{[%clk 0:02:09.8]} 13. O-O {[%clk 0:02:36.6]} 13... O-O {[%clk 0:02:00.4]} 14.
Nd2 {[%clk 0:02:31.3]} 14... Ne4 {[%clk 0:01:55.3]} 15. Nb3 {[%clk 0:02:29.5]}
15... Bd8 {[%clk 0:01:10.2]} 16. Na5 {[%clk 0:02:25.6]} 16... Bxa5 {[%clk
0:01:11]} 17. bxa5 {[%clk 0:02:27.5]} 17... Nd2 {[%clk 0:01:05.9]} 18. Rfd1
{[%clk 0:02:12.3]} 18... Nb3 {[%clk 0:00:40.6]} 19. Ra3 {[%clk 0:02:11.5]} 19...
Bc2 {[%clk 0:00:41.4]} 20. Re1 {[%clk 0:00:51]} 20... e5 {[%clk 0:00:41.8]} 21.
dxe5 {[%clk 0:00:17.4]} 21... Nbxc5 {[%clk 0:00:39.7]} 22. b4 {[%clk 0:00:18.6]}
22... Nd3 {[%clk 0:00:39]} 23. Bxd3 {[%clk 0:00:19.6]} 23... Bxd3 {[%clk
0:00:40.2]} 24. Nxd5 {[%clk 0:00:21.5]} 24... cxd5 {[%clk 0:00:34.3]} 25. Rxd3
{[%clk 0:00:22.6]} 25... Nb8 {[%clk 0:00:27.8]} 26. Rxd5 {[%clk 0:00:23.6]}
26... Rc4 {[%clk 0:00:27.6]} 27. b5 {[%clk 0:00:22.2]} 27... axb5 {[%clk
0:00:27.3]} 28. Rxb5 {[%clk 0:00:24.1]} 28... Nc6 {[%clk 0:00:28.9]} 29. Ra1
{[%clk 0:00:20.1]} 29... Ra8 {[%clk 0:00:27.7]} 30. g4 {[%clk 0:00:18.8]} 30...
g5 {[%clk 0:00:20.5]} 31. Bg3 {[%clk 0:00:18.9]} 31... Re4 {[%clk 0:00:17.6]}
32. Kg2 {[%clk 0:00:19.5]} 32... Rc4 {[%clk 0:00:18.2]} 33. Kf3 {[%clk
0:00:18.5]} 33... Rc3 {[%clk 0:00:19.5]} 34. Ra4 {[%clk 0:00:13.6]} 34... Kf8
{[%clk 0:00:16.1]} 35. h4 {[%clk 0:00:14.8]} 35... gxh4 {[%clk 0:00:17]} 36.
Bxh4 {[%clk 0:00:16.1]} 36... Re8 {[%clk 0:00:18.4]} 37. Bf6 {[%clk 0:00:15.8]}
37... Ra8 {[%clk 0:00:18.1]} 38. Rxb7 {[%clk 0:00:14.9]} 38... Kg8 {[%clk
0:00:16.3]} 39. a6 {[%clk 0:00:16.1]} 39... Rc5 {[%clk 0:00:14.1]} 40. a7 {[%clk
0:00:14.1]} 40... Nxe5+ {[%clk 0:00:12.6]} 41. Bxe5 {[%clk 0:00:15.1]} 41...
Rxe5 {[%clk 0:00:13.9]} 42. Rb8+ {[%clk 0:00:16.6]} 1-0

[Event "*** Titled Tuesday Blitz"]
[Site "Chess.com"]
[Date "2020.02.04"]
[Round "1"]
[White "Harry_Rakkel"]
[Black "GadimbayliA"]
[Result "1-0"]
[WhiteElo "2535"]
[BlackElo "2938"]
[TimeControl "180+2"]
[EndTime "9:09:25 PST"]
[Termination "Harry_Rakkel won by resignation"]

1. d4 {[%clk 0:03:00.2]} 1... d5 {[%clk 0:02:56.6]} 2. c4 {[%clk 0:03:00]} 2...
e5 {[%clk 0:02:57.4]} 3. dxe5 {[%clk 0:02:59.4]} 3... d4 {[%clk 0:02:59.3]} 4.
Nf3 {[%clk 0:02:59.3]} 4... Nc6 {[%clk 0:03:00.6]} 5. a3 {[%clk 0:02:57.8]} 5...
Nge7 {[%clk 0:03:01.5]} 6. b4 {[%clk 0:02:56.7]} 6... Ng6 {[%clk 0:03:02.7]} 7.
Bb2 {[%clk 0:02:55.5]} 7... a5 {[%clk 0:03:03.4]} 8. bxa5 {[%clk 0:02:46.2]}
8... Nxa5 {[%clk 0:02:09.3]} 9. Bxd4 {[%clk 0:02:36.3]} 9... Nxc4 {[%clk
0:02:08.2]} 10. Qc1 {[%clk 0:02:16.4]} 10... Na5 {[%clk 0:01:38.9]} 11. Nbd2
{[%clk 0:02:05]} 11... Be7 {[%clk 0:01:37]} 12. e3 {[%clk 0:01:52.5]} 12... O-O
{[%clk 0:01:36.3]} 13. Be2 {[%clk 0:01:51.1]} 13... Nc6 {[%clk 0:01:19.5]} 14.
Bc3 {[%clk 0:01:48.1]} 14... Bg4 {[%clk 0:01:20.5]} 15. h3 {[%clk 0:01:45.7]}
15... Bf5 {[%clk 0:01:13.6]} 16. O-O {[%clk 0:01:45.5]} 16... Bd3 {[%clk
0:01:14.6]} 17. Bxd3 {[%clk 0:01:40.1]} 17... Qxd3 {[%clk 0:01:16.5]} 18. Rd1
{[%clk 0:01:40.6]} 18... Qb5 {[%clk 0:01:07.8]} 19. Qb2 {[%clk 0:01:36.3]} 19...
Qa4 {[%clk 0:00:44.6]} 20. Rdb1 {[%clk 0:01:35.1]} 20... b6 {[%clk 0:00:41]} 21.
Bb4 {[%clk 0:01:11.9]} 21... Bxb4 {[%clk 0:00:24.9]} 22. axb4 {[%clk 0:01:12.7]}
22... Qb5 {[%clk 0:00:26.6]} 23. Rxa8 {[%clk 0:01:13.4]} 23... Rxa8 {[%clk
0:00:28.5]} 24. Qc3 {[%clk 0:01:13.7]} 24... h6 {[%clk 0:00:20.9]} 25. Ne4
{[%clk 0:01:02.6]} 25... Ngxe5 {[%clk 0:00:16.9]} 26. Nxe5 {[%clk 0:00:58.4]}
26... Nxe5 {[%clk 0:00:18.8]} 27. Qxc7 {[%clk 0:00:56.1]} 27... Qd3 {[%clk
0:00:19.6]} 28. Nc3 {[%clk 0:00:49.7]} 28... Nc4 {[%clk 0:00:20.6]} 29. Qc6
{[%clk 0:00:35.9]} 29... Ra3 {[%clk 0:00:10.1]} 30. Rd1 {[%clk 0:00:29]} 30...
Qxc3 {[%clk 0:00:11.3]} 31. Qc8+ {[%clk 0:00:19.5]} 31... Kh7 {[%clk 0:00:09.9]}
32. Qf5+ {[%clk 0:00:20.2]} 32... g6 {[%clk 0:00:11.4]} 33. Qxf7+ {[%clk
0:00:20.8]} 33... Qg7 {[%clk 0:00:12.3]} 34. Qxc4 {[%clk 0:00:20.4]} 34... Ra7
{[%clk 0:00:08.3]} 35. Qe6 {[%clk 0:00:20.3]} 35... b5 {[%clk 0:00:07.5]} 36.
Qc6 {[%clk 0:00:18.3]} 36... Rb7 {[%clk 0:00:05.8]} 37. h4 {[%clk 0:00:15.7]}
37... h5 {[%clk 0:00:05.9]} 38. Qe4 {[%clk 0:00:12.8]} 38... Rf7 {[%clk
0:00:06.3]} 39. Rd5 {[%clk 0:00:10]} 39... Qa1+ {[%clk 0:00:06.5]} 40. Kh2
{[%clk 0:00:10.9]} 40... Rxf2 {[%clk 0:00:03.5]} 41. Rxh5+ {[%clk 0:00:11.6]}
41... Kg7 {[%clk 0:00:04.8]} 42. Rxb5 {[%clk 0:00:10]} 42... Rf1 {[%clk
0:00:04.8]} 43. Qe7+ {[%clk 0:00:08.6]} 43... Kh6 {[%clk 0:00:06.2]} 44. Qg5+
{[%clk 0:00:09.5]} 44... Kg7 {[%clk 0:00:06]} 45. Rb7+ {[%clk 0:00:10.6]} 45...
Kg8 {[%clk 0:00:07.6]} 46. Qxg6+ {[%clk 0:00:09.4]} 46... Kf8 {[%clk 0:00:09]}
47. Qd6+ {[%clk 0:00:09.1]} 47... Kg8 {[%clk 0:00:10.4]} 48. Qd8+ {[%clk
0:00:09.1]} 48... Rf8 {[%clk 0:00:11.4]} 49. Qd5+ {[%clk 0:00:08.4]} 1-0

[Event "*** Titled Tuesday Blitz"]
[Site "Chess.com"]
[Date "2020.02.04"]
[Round "1"]
[White "crescentmoon2411"]
[Black "M1711"]
[Result "1-0"]
[WhiteElo "2970"]
[BlackElo "2517"]
[TimeControl "180+2"]
[EndTime "9:09:27 PST"]
[Termination "crescentmoon2411 won by resignation"]

1. d4 {[%clk 0:02:59.5]} 1... Nf6 {[%clk 0:02:58.9]} 2. Nf3 {[%clk 0:02:59.8]}
2... g6 {[%clk 0:02:59]} 3. c4 {[%clk 0:03:00.1]} 3... Bg7 {[%clk 0:03:00]} 4.
g3 {[%clk 0:03:00.9]} 4... O-O {[%clk 0:02:59.7]} 5. Bg2 {[%clk 0:03:02.3]} 5...
d5 {[%clk 0:03:00.2]} 6. cxd5 {[%clk 0:03:01.4]} 6... Nxd5 {[%clk 0:03:02.1]} 7.
O-O {[%clk 0:03:02.5]} 7... Nb6 {[%clk 0:02:58.5]} 8. Nc3 {[%clk 0:03:00.5]}
8... Nc6 {[%clk 0:02:49.8]} 9. e3 {[%clk 0:03:01.3]} 9... Re8 {[%clk 0:02:50.2]}
10. Nh4 {[%clk 0:02:38.9]} 10... e5 {[%clk 0:02:42]} 11. d5 {[%clk 0:02:39.5]}
11... Na5 {[%clk 0:02:41.6]} 12. e4 {[%clk 0:02:32.4]} 12... c6 {[%clk
0:02:35.1]} 13. dxc6 {[%clk 0:02:05.3]} 13... bxc6 {[%clk 0:02:34.7]} 14. Qxd8
{[%clk 0:01:59.8]} 14... Rxd8 {[%clk 0:02:36.6]} 15. b3 {[%clk 0:01:49.7]} 15...
Ba6 {[%clk 0:02:19.5]} 16. Rd1 {[%clk 0:01:46.6]} 16... Rxd1+ {[%clk 0:02:14.8]}
17. Nxd1 {[%clk 0:01:48.5]} 17... Rd8 {[%clk 0:02:15.5]} 18. Ne3 {[%clk
0:01:42.9]} 18... f6 {[%clk 0:01:54.3]} 19. Bf1 {[%clk 0:01:36.1]} 19... Bxf1
{[%clk 0:01:52.9]} 20. Kxf1 {[%clk 0:01:38]} 20... Bf8 {[%clk 0:01:50.7]} 21.
Nf3 {[%clk 0:01:36.7]} 21... Bc5 {[%clk 0:01:46.3]} 22. Ke2 {[%clk 0:01:36.9]}
22... Kf7 {[%clk 0:01:43.4]} 23. Bd2 {[%clk 0:01:36.4]} 23... Nb7 {[%clk
0:01:39.2]} 24. Rc1 {[%clk 0:01:37.2]} 24... Rc8 {[%clk 0:01:10.9]} 25. Nc4
{[%clk 0:01:33.6]} 25... Ke6 {[%clk 0:01:07.7]} 26. Na5 {[%clk 0:01:30.6]} 26...
Nxa5 {[%clk 0:01:04.3]} 27. Bxa5 {[%clk 0:01:31.5]} 27... Nd7 {[%clk 0:01:03.9]}
28. Nd2 {[%clk 0:01:30.2]} 28... Bb6 {[%clk 0:01:00.1]} 29. Nc4 {[%clk
0:01:30.1]} 29... Rb8 {[%clk 0:00:46.7]} 30. Nxb6 {[%clk 0:01:26.1]} 30... axb6
{[%clk 0:00:48.6]} 31. Rxc6+ {[%clk 0:01:26.6]} 31... Kf7 {[%clk 0:00:43.9]} 32.
Bb4 {[%clk 0:01:28.5]} 32... b5 {[%clk 0:00:34]} 33. Rc7 {[%clk 0:01:14.9]}
33... Ke6 {[%clk 0:00:34]} 34. f4 {[%clk 0:01:12.6]} 34... f5 {[%clk 0:00:10.3]}
35. g4 {[%clk 0:01:07.7]} 35... Ra8 {[%clk 0:00:05]} 36. gxf5+ {[%clk 0:01:08]}
36... gxf5 {[%clk 0:00:06.5]} 37. exf5+ {[%clk 0:01:09]} 37... Kxf5 {[%clk
0:00:08.4]} 38. Rxd7 {[%clk 0:01:10.3]} 38... Rxa2+ {[%clk 0:00:09.7]} 39. Kf3
{[%clk 0:01:08.2]} 39... Rb2 {[%clk 0:00:04]} 40. Bd2 {[%clk 0:00:46.6]} 40...
Rxb3+ {[%clk 0:00:05.1]} 41. Be3 {[%clk 0:00:45]} 41... exf4 {[%clk 0:00:04.3]}
42. Rf7+ {[%clk 0:00:46]} 42... Kg6 {[%clk 0:00:05.6]} 43. Rxf4 {[%clk
0:00:47.9]} 43... Rb1 {[%clk 0:00:05.7]} 44. Rg4+ {[%clk 0:00:45.3]} 44... Kf7
{[%clk 0:00:03.4]} 45. Rh4 {[%clk 0:00:45]} 45... Kg6 {[%clk 0:00:04.5]} 46. Bd2
{[%clk 0:00:43.7]} 46... Rb2 {[%clk 0:00:03.4]} 47. Rd4 {[%clk 0:00:43.4]} 47...
Rb3+ {[%clk 0:00:04.2]} 48. Kg4 {[%clk 0:00:42.3]} 48... h5+ {[%clk 0:00:04.8]}
49. Kh4 {[%clk 0:00:43.1]} 49... Rb2 {[%clk 0:00:03.5]} 50. h3 {[%clk
0:00:43.2]} 50... Ra2 {[%clk 0:00:03.8]} 51. Bg5 {[%clk 0:00:35.9]} 51... Ra4
{[%clk 0:00:02.9]} 52. Rxa4 {[%clk 0:00:36.9]} 52... bxa4 {[%clk 0:00:04.8]} 53.
Bc1 {[%clk 0:00:38.2]} 1-0